Cogmind - Beta 16 --- EXPLORER MODE // 2025.12.25 @ 15:59:35 Player: sussyscylla Result: Self-destructed Performance ------------- Evolutions (2) 1000 Regions Visited (4) 800 Robots Destroyed (26) 130 Value Destroyed (409) 409 Prototype IDs (1) 20 Alien Tech Used (0) 0 Bonus (0) 0 TOTAL SCORE: 2359 Bonus ------- None Cogmind --------- Core Integrity 481/550 Matter 296/300 Energy 47/100 System Corruption 0% Temperature Cool (0) Movement Hovering (116) Ox1 Location -8/Materials Parts ------- > --- POWER (1) -------- (None) > --- PROPULSION (4) --- Hover Unit Improved Hover Unit > --- UTILITY (5) ------ Medium Storage Unit Structural Scanner Visual Processing Unit Targeting Computer > --- WEAPON (2) ------- EM Shotgun Light Assault Rifle > --- INVENTORY (10) --- Large Matter Pod (150) Advanced Terrain Scan Processor Advanced Terrain Scan Processor Layered Light Armor Plating EM Shotgun Medium Laser Light EM Pulse Cannon Assault Rifle Light Cannon Grenade Launcher Peak State ------------ > --- POWER ------------ Heavy Ion Engine > --- PROPULSION ------- Hover Unit Hover Unit Improved Hover Unit > --- UTILITY ---------- Medium Storage Unit Visual Processing Unit Targeting Computer > --- WEAPON ----------- EM Shotgun Light Assault Rifle > --- INVENTORY -------- Large Matter Pod Structural Scanner Terrain Scan Processor EM Shotgun Medium Laser Light EM Pulse Cannon Assault Rifle Light Cannon Grenade Launcher [Rating: 15] Favorites ----------- Power Light Ion Engine Engine Light Ion Engine Propulsion Light Treads Treads Light Treads Hover Unit Hover Unit Utility Targeting Computer Device Structural Scanner Storage Medium Storage Unit Processor Targeting Computer Protection Core Shielding Weapon EM Pulse Gun Energy Gun EM Pulse Gun Ballistic Gun Assault Rifle Build | -11 -10 -9 -9 -8 ------- Run | Yrd Mat Mat Min Mat Slots Evolved 5 | . 1 2 . 2 Power . | . . . . . Propulsion 2 | . . 2 . . Utility 3 | . 1 . . 2 Weapon . | . . . . . Parts Attached 21 | 9 4 6 . 2 Power 3 | 1 1 1 . . Engine 3 | 1 1 1 . . Core . | . . . . . Reactor . | . . . . . Propulsion 6 | 2 . 4 . . Treads 2 | 2 . . . . Leg . | . . . . . Wheel . | . . . . . Hover 4 | . . 4 . . Flight . | . . . . . Utility 6 | 3 2 . . 1 Device 1 | . . . . 1 Storage 2 | 1 1 . . . Processor 2 | 1 1 . . . Hackware . | . . . . . Protection 1 | 1 . . . . Artifact . | . . . . . Weapon 6 | 3 1 1 . 1 Energy Gun 3 | 2 . 1 . . Energy Cannon . | . . . . . Ballistic Gun 3 | 1 1 . . 1 Ballistic Cannon . | . . . . . Launcher . | . . . . . Special Weapon . | . . . . . Impact Weapon . | . . . . . Slashing Weapon . | . . . . . Piercing Weapon . | . . . . . Special Melee Weapon . | . . . . . Unidentified Prototypes 1 | . . 1 . . Parts Lost 5 | . . 2 . 3 Power 1 | . . . . 1 Propulsion 2 | . . 1 . 1 Utility . | . . . . . Weapon 2 | . . 1 . 1 Highest Loss Streak 3 | . . 2 . 3 To Critical Strikes . | . . . . . Average Backups 5 | . 5 7 9 9 Power . | . . . . . Propulsion . | . 1 . . . Utility 1 | . . 3 3 3 Weapon 3 | . 2 4 6 6 Tool/Special . | . . . . . Unused Backups 13 | . 2 . . 11 Power 1 | . 1 . . . Propulsion . | . . . . . Utility 6 | . 1 . . 5 Weapon 6 | . . . . 6 Tool/Special . | . . . . . Average Slot Usage (%) 92 | . 97 86 90 72 Engine 10 | . 12 9 10 3 Treads 16 | . 25 . . . Hover 9 | . . 25 30 20 Storage 11 | . 12 10 10 8 Processor 21 | . 22 20 20 16 Energy Gun 11 | . 12 10 10 8 Ballistic Gun 11 | . 12 10 10 6 Peak Build Rating 15 | 7 10 15 13 15 Average Rating 9 | 5 8 10 13 13 On Entrance 8 | . 7 10 13 13 Avg Prop Armor Cover (%) . | . . . . . Naked Turns . | . . . . . Heaviest Build 19 | 19 19 17 17 18 Greatest Support 40 | 40 40 25 19 19 Greatest Overweight (x) 1 | . . 1 . 1 Average Overweight (x) . | . . . . . Largest Inventory Capacity 10 | 10 10 10 10 10 Average Capacity 9 | 7 10 10 10 10 Most Carried 10 | 1 9 10 9 10 Average Carried 5 | . 5 7 9 9 Final Capacity 10 | 10 10 10 10 10 Final Carried 10 | 1 9 9 9 10 Class Distribution -------------------- 96% | Hacker-Mutant 3% | Scavenger-Mutant Dominant Class ---------------- Hacker-Mutant | -10/Materials Hacker-Mutant | -9/Materials Hacker-Mutant | -9/Mines Hacker-Mutant | -8/Materials Resources | -11 -10 -9 -9 -8 ----------- Run | Yrd Mat Mat Min Mat Matter Collected 648 | 226 315 91 . 16 Remotely . | . . . . . Salvage Created 667 | . 325 234 . 108 Parts 51 | . 26 19 . 6 Haulers Intercepted 1 | . 1 . . . Recyclers Shooed 1 | . . 1 . . Parts Field Recycled . | . . . . . Retrieved Matter . | . . . . . Parts Self-Destructed . | . . . . . Prevented . | . . . . . Parts Restored . | . . . . . Kills | -11 -10 -9 -9 -8 ------- Run | Yrd Mat Mat Min Mat Combat Hostiles Destroyed 18 | . 7 7 . 4 Guns 16 | . 6 7 . 3 AOE 2 | . 1 . . 1 Classes Destroyed 7 | . 5 1 . 1 Builder 2 | . 2 . . . Hauler 1 | . 1 . . . Watcher 5 | . 3 2 . . Swarmer 14 | . 6 5 . 3 Grunt 1 | . . . . 1 Sentry 2 | . . 2 . . Subdweller 1 | . 1 . . . Best Kill Streak 5 | . 5 4 . 3 Combat Bots Only 4 | . 4 3 . 3 Max Kills in Single Turn 2 | . 2 1 . 1 Gunslinging 1 | . 1 . . . Exploded 1 | . 1 . . 1 Melee . | . . . . . Uniques/NPCs Destroyed . | . . . . . Combat | -11 -10 -9 -9 -8 -------- Run | Yrd Mat Mat Min Mat Hostile Shots Fired 89 | . 26 38 . 25 Missed 28 | . 8 12 . 8 Hits 61 | . 18 26 . 17 Projectile 61 | . 18 26 . 17 Critical Strikes 2 | . . . . 2 Damage Taken 545 | . 128 247 . 170 Core 137 | . 27 41 . 69 Absorbed by Shields . | . . . . . Ignored by Resistances 343 | . 83 156 . 104 Core Remaining (%) 92 | 100 89 . 89 . Volleys Fired 55 | . 20 19 . 16 Largest 2 | . 2 2 . 2 Hottest 65 | . 60 65 . 65 Shots Fired 100 | . 41 37 . 22 Gun 100 | . 41 37 . 22 Cannon . | . . . . . Launcher . | . . . . . Special . | . . . . . Kinetic 54 | . 20 19 . 15 Thermal . | . . . . . Explosive . | . . . . . Electromagnetic 46 | . 21 18 . 7 Robot Hit Streak 17 | . 10 11 . 17 Robot Miss Streak 2 | . 2 2 . 1 Penetration Max . | . . . . . Secondary Targets 4 | . 2 1 . 1 Max Gunslinging Chain 1 | . 1 1 . 1 Shots Hit Robots 76 | . 28 27 . 21 Core Hits 41 | . 15 18 . 8 Critical Kills 1 | . . 1 . . Critical Parts Destroyed 2 | . . . . 2 Critical Strikes 4 | . . 2 . 2 Destroy 3 | . . 1 . 2 Corrupt 1 | . . 1 . . Melee Attacks . | . . . . . Impact . | . . . . . Slashing . | . . . . . Piercing . | . . . . . Sneak Attacks . | . . . . . Combat Hostiles . | . . . . . Follow-up Attacks . | . . . . . Damage Inflicted 1117 | . 470 382 . 265 Guns 878 | . 359 317 . 202 Cannons . | . . . . . Explosions 237 | . 109 65 . 63 Melee . | . . . . . Ramming 2 | . 2 . . . Kinetic 346 | . 135 112 . 99 Thermal 237 | . 109 65 . 63 Explosive . | . . . . . Electromagnetic 532 | . 224 205 . 103 Impact . | . . . . . Slashing . | . . . . . Piercing . | . . . . . Highest Corruption 1 | . 1 . . . Average Corruption 1 | . 1 . . . Corruption Purged . | . . . . . Corruption Blocked . | . . . . . Effects 5 | . 5 . . . Matter Fused 2 | . 2 . . . Energy Discharges 2 | . 2 . . . Misfires 1 | . 1 . . . Overload Shots . | . . . . . Overflow Damage 2 | . . 2 . . Projectiles . | . . . . . Explosions 2 | . . 2 . . Melee . | . . . . . Knockbacks . | . . . . . Impact . | . . . . . Kinetic . | . . . . . Secondary . | . . . . . Self-Inflicted Damage 51 | . . 27 . 24 Shots 2 | . . 1 . 1 Rammed 2 | . 2 . . . Targets Rammed 2 | . 2 . . . Kicked . | . . . . . Crushed . | . . . . . Highest Temperature 89 | . 30 89 . 48 Average Temperature 28 | . 16 36 . 16 Received Heat Transfer 255 | . 36 75 . 144 Siege Activations . | . . . . . Martial Activations . | . . . . . Shielding Activations . | . . . . . Robots Disrupted . | . . . . . Combat Hostiles . | . . . . . Robots Corrupted . | . . . . . Combat Hostiles . | . . . . . Parts Fried 2 | . 1 1 . . Impact Corruptions . | . . . . . Robots Melted . | . . . . . Combat Hostiles . | . . . . . Parts Melted 1 | . . . . 1 Heat Transferred 350 | . 100 100 . 150 Parts Sabotaged . | . . . . . Parts Stolen . | . . . . . Parts Stripped . | . . . . . Power Chain Reactions 5 | . 2 2 . 1 Alert | -11 -10 -9 -9 -8 ------- Run | Yrd Mat Mat Min Mat Maximum Alert Level . | . . . . . Low Security (%) 100 | 100 100 100 100 100 Level 1 . | . . . . . Level 2 . | . . . . . Level 3 . | . . . . . Level 4 . | . . . . . Level 5 . | . . . . . High Security . | . . . . . Max Security . | . . . . . Peak Influence 129 | . 129 95 17 58 Initial 17 | . . . 17 . Average 13 | . 11 24 6 21 Influence Increases 614 | . 199 262 45 108 Destroy 0b10 Robot/C 340 | . 120 140 . 80 Destroy 0b10 Robot/NC 40 | . 30 10 . . Destroy Leader 92 | . 38 44 . 10 Successful Hack 5 | . . 5 . . Destroy Structure 17 | . 11 3 . 3 Partial Spotted 30 | . . 30 . . Lose Combat Pursuer 90 | . . 30 45 15 Influence Decreases 586 | . 199 197 110 80 Entered New Map 48 | . . . 48 . Time Decay 515 | . 199 194 62 60 Lost Part 23 | . . 3 . 20 Squads Dispatched 2 | . . 1 . 1 Investigation . | . . . . . Extermination . | . . . . . Reinforcement 2 | . . 1 . 1 Assault . | . . . . . Garrison . | . . . . . Intercept . | . . . . . Searches Triggered . | . . . . . Construction Impeded . | . . . . . Haulers Reinforced . | . . . . . Active Scanning Responses . | . . . . . Cargo Convoy Interrupts . | . . . . . Stealth | -11 -10 -9 -9 -8 --------- Run | Yrd Mat Mat Min Mat Distress Signals 3 | . 1 2 . . Communications Jammed . | . . . . . Distress Signals . | . . . . . Times Spotted 38 | . 10 18 3 7 Peak Tracking Total 7 | . 3 7 2 4 Tactical Retreats 4 | . . 1 2 1 Traps | -11 -10 -9 -9 -8 ------- Run | Yrd Mat Mat Min Mat Traps Triggered 3 | . 2 1 . . Indirectly . | . . . . . Trap Hack Attempts . | . . . . . Triggered . | . . . . . Disarmed . | . . . . . Reprogrammed . | . . . . . Reused . | . . . . . Traps Extracted . | . . . . . Installed . | . . . . . Triggered . | . . . . . Machines | -11 -10 -9 -9 -8 ---------- Run | Yrd Mat Mat Min Mat Machines Disabled . | . . . . . Max in Single Turn . | . . . . . Machines Repaired . | . . . . . Machines Dismantled . | . . . . . Machines Sabotaged . | . . . . . Overloaded Fab Kills . | . . . . . Hacking | -11 -10 -9 -9 -8 --------- Run | Yrd Mat Mat Min Mat Machines Accessed 2 | . . 1 . 1 Terminals 1 | . . 1 . . Fabricators . | . . . . . Repair Stations 1 | . . . . 1 Recycling Units . | . . . . . Scanalyzers . | . . . . . Garrison Access . | . . . . . Total Hacks 5 | . . 2 . 3 Successful 1 | . . 1 . . Failed 4 | . . 1 . 3 Catastrophic . | . . . . . Database Lockouts . | . . . . . Manual 2 | . . 2 . . Terminals 2 | . . 2 . . Fabricators . | . . . . . Repair Stations 3 | . . . . 3 Recycling Units . | . . . . . Scanalyzers . | . . . . . Garrison Access . | . . . . . Terminal Hacks 1 | . . 1 . . Part Schematic 1 | . . 1 . . Fabricator Hacks . | . . . . . Repair Station Hacks . | . . . . . Recycling Unit Hacks . | . . . . . Scanalyzer . | . . . . . Garrison Access Hacks . | . . . . . Unauthorized Hacks . | . . . . . Terminals . | . . . . . Fabricators . | . . . . . Repair Stations . | . . . . . Recycling Units . | . . . . . Scanalyzers . | . . . . . Garrison Access . | . . . . . Data Cores Recovered . | . . . . . Used . | . . . . . Hacking Detections 2 | . . 1 . 1 Full Trace Events . | . . . . . Feedback Events . | . . . . . Feedback Blocked . | . . . . . Robot Schematics Acquired . | . . . . . Robots Built . | . . . . . Authchips . | . . . . . Time . | . . . . . Total Robot Build Rating . | . . . . . Part Schematics Acquired 1 | . . 1 . . Parts Built . | . . . . . Authchips . | . . . . . Time . | . . . . . Total Part Build Rating . | . . . . . Part Studies Acquired . | . . . . . Parts Repaired . | . . . . . Time . | . . . . . Parts Recycled . | . . . . . Recycled Matter . | . . . . . Retrieved Matter . | . . . . . Retrieved Components . | . . . . . Parts Scanalyzed . | . . . . . Part Schematics Acquired . | . . . . . Parts Damaged . | . . . . . Bothacking | -11 -10 -9 -9 -8 ------------ Run | Yrd Mat Mat Min Mat Used RIF Installer . | . . . . . Robots Hacked . | . . . . . Non-combat . | . . . . . Combat . | . . . . . Robot Hacks Applied . | . . . . . Relay Couplers Released . | . . . . . Fabnet Peak Effective % . | . . . . . Robots Rewired . | . . . . . Allies Hacked . | . . . . . Hacks Repelled . | . . . . . Allies | -11 -10 -9 -9 -8 -------- Run | Yrd Mat Mat Min Mat Total Allies . | . . . . . Largest Group . | . . . . . Highest-Rated Group . | . . . . . Highest-Rated Ally . | . . . . . Total Orders . | . . . . . Ally Attacks . | . . . . . Total Damage . | . . . . . Kills . | . . . . . Allies Corrupted . | . . . . . Allies Melted . | . . . . . Intel | -11 -10 -9 -9 -8 ------- Run | Yrd Mat Mat Min Mat Active Infowar (turns) 1654 | . 991 421 132 110 Optics 1654 | . 991 421 132 110 Structural 110 | . . . . 110 Robot Analysis Total . | . . . . . Derelict Logs Recovered . | . . . . . Drone Launches . | . . . . . Drone Recoveries . | . . . . . Exploration | -11 -10 -9 -9 -8 ------------- Run | Yrd Mat Mat Min Mat Turns Passed 2086 | 160 1263 421 132 110 Spaces Moved 1608 | 98 728 457 253 72 Core 10 | 10 . . . . Treads 816 | 88 728 . . . Legs . | . . . . . Wheels . | . . . . . Hover 782 | . . 457 253 72 Flight . | . . . . . Fastest Speed 48 | 50 160 48 52 52 Average Speed 113 | 148 160 74 52 65 Slowest Speed 160 | 160 160 156 52 116 Overloaded Moves . | . . . . . Propulsion Burnouts . | . . . . . Robots Hopped . | . . . . . Potential Cave-ins . | . . . . . Cave-ins Triggered . | . . . . . Exploration Rate (%) 44 | 5 100 43 65 8 Regions Visited 4 Branch Regions 1 Pre-discovered Areas 1 | . . . 1 . Known Exits Taken 4 | 1 1 1 1 . Unknown Exits Taken . | . . . . . Scrap Searched 1 | . . . 1 . Spaces Dug . | . . . . . Terrain Destroyed 13 | . 9 2 . 2 Melee . | . . . . . Projectile . | . . . . . AOE 13 | . 9 2 . 2 Terrain Rammed . | . . . . . Walls Destroyed . | . . . . . Machines Disabled . | . . . . . Actions | -11 -10 -9 -9 -8 --------- Run | Yrd Mat Mat Min Mat Total 1766 | 108 786 504 252 116 Wait 53 | . 18 15 . 20 Move 1604 | 97 727 456 252 72 Hop . | . . . . . Pick Up 18 | 1 10 3 . 4 Fast Attach 17 | 8 4 4 . 1 Attach 4 | . . 3 . 1 Detach . | . . . . . Swap 1 | 1 . . . . Drop 12 | 1 5 4 . 2 Fire 55 | . 20 19 . 16 Melee . | . . . . . Ram . | . . . . . Kick . | . . . . . Crush 2 | . 2 . . . Escape Stasis . | . . . . . Rewire . | . . . . . Trap . | . . . . . Miscellaneous . | . . . . . Route ------- -11/Scrapyard -10/Materials (discovered 6 exits: *Mat x3 / *Min x2 / *Sub) -9/Materials (discovered 3 exits: *Min x2 / *Sto) -9/Mines -8/Materials History --------- Turn | Location | Event 8 | -11/Scrapyard | Identified exit to Materials 8 | -11/Scrapyard | Discovered exit to Materials (range 15) 161 | -11/Scrapyard | Entered Materials 161 | -10/Materials | Evolved 1 slot: Utility x1 314 | -10/Materials | Build established: Hacker-Mutant 366 | -10/Materials | Identified exit to Mines 366 | -10/Materials | Discovered exit to Mines (range 14) 454 | -10/Materials | Discovered exit to Mines (range 11) 661 | -10/Materials | Derelicts attacked the area 685 | -10/Materials | Identified exit to Materials 685 | -10/Materials | Discovered exit to Materials (range 10) 850 | -10/Materials | Identified exit to Subcaves 850 | -10/Materials | Discovered exit to Subcaves (range 9) 914 | -10/Materials | Discovered exit to Materials (range 18) 1392 | -10/Materials | Discovered exit to Materials (range 12) 1424 | -10/Materials | Entered another Materials area 1424 | -9/Materials | Evolved 2 slots: Propulsion x2 1739 | -9/Materials | Identified exit to Mines 1739 | -9/Materials | Discovered exit to Mines (range 11) 1749 | -9/Materials | Discovered exit to Mines (range 11) 1758 | -9/Materials | Identified exit to Storage 1758 | -9/Materials | Discovered exit to Storage (range 15) 1845 | -9/Materials | Entered Mines 1968 | -9/Mines | Identified exit to Materials 1968 | -9/Mines | Discovered exit to Materials (range 10) 1969 | -9/Mines | Learned location of Storage (-9) 1977 | -9/Mines | Entered Materials 1977 | -8/Materials | Evolved 2 slots: Utility x2 2065 | -8/Materials | Lost 3 parts (1p1n1w) 2087 | -8/Materials | Self-destructed Last Messages --------------- (Destroy). 02026_ Destroyed Imp. Heat Sink. 02030_ G-47 Trooper misfires. 02034_ Lgt. Assault Rifle destroyed. 02036_ G-47 Trooper IFF system glitched. 02046_ G-47 Trooper overheating. 02050_ G-47 Trooper heat damages Aluminum Leg, Particle Gun, Aluminum Leg. 02053_ Acquired Lgt. Assault Rifle. 02061_ G-47 Trooper suffers critical hit (Destroy). 02061_ Destroyed Lgt. Nuclear Core. 02063_ G-47 Trooper destroyed. 02065_ Acquired 7 matter. 02066_ Acquired 9 matter. 02073_ K-01 Serf collects debris. 02080_ ALERT: Hostiles spotted, dispatching reinforcements to Terminal M004. 02081_ K-01 Serf collects debris. 02083_ Critical hit (Burn: +37). Map ----- +----------------------------------------------------+ | ?????????????????????????????????????????????????? | | ?????????????????????????????????????????????????? | | ?????????????????????????????????????????????????? | | ?????????????????????????????????????????????????? | | ?????????????????????????????????????????????????? | | ?????????????????????????????????????????????????? | | ?????????????????????????????????????????????????? | | ?????????????????????????????????????????????????? | | ?????????????????????????????????????????????????? | | ?????????????????????????????????????????????????? | | ?????????????????????????????????????????????????? | | ?????????????????????????????????????????????????? | | ?????????????????????????????????????????????????? | | ?????????????????????????????????????????????????? | | ????????????????###?#####?###????????????????????? | | ????????????????###?#####?###????? ?????????????? | | ????????????????## """"""" + ###??????????? | | ????????????????## """"""" #######+####??????????? | | ????????????????## """"""" # ?????????? | | ???##########???## """"""" # ? ??????????? | | ???##########???## """"""" # ?"" """ ???????????? | | ???##]]!! !##???## # ?"" """?????????????? | | ???##]]! !!##???## ! [ # ?"" ""??????????????? | | ???## ####### # "" ## ????? | | ???## ###########+########;############ ? | | ???## @ Y ##? | | ???## =% ##? | | ???## a = % ##? | | ???####### ################;;;#####+######+#####? | | ???####### ############# *[ # ## #??? | | ????????## ##????????? # # ?????????????? | | ????????## ##????????? # # ?????????????? | | ????????## ????????? # # ?????????????? | | ????????## ????????? # " "" # ?????????????? | | ????????## ????????? # "R"" # ?????????????? | | ????????## ???????? # """ # ?????????????? | | ????????## ??????? # # ?????????????? | | ???????? # ??????? ########### ?????????????? | | ???????? # ? ?????? ########### ?????????????? | | ???????? # ?????????????????????????????????? | | ???????? + ####?????????????????????????????????? | | ???????? # ####?????????????????????????????????? | | ?????????? ?????????????????????????????????????? | | ?????????????????????????????????????????????????? | | ?????????????????????????????????????????????????? | | ?????????????????????????????????????????????????? | | ?????????????????????????????????????????????????? | | ?????????????????????????????????????????????????? | | ?????????????????????????????????????????????????? | | ?????????????????????????????????????????????????? | +----------------------------------------------------+ Best States ------------- Heat Dissipation 31 Energy Generation 10 Energy Capacity 250 Matter Stores 300 Matter Capacity 300 Sight Range 18 Terrain Scan Density 10 Resistance: KI 35 Resistance: TH 35 Resistance: EX 35 Resistance: EM 35 Resistance: I 35 Resistance: S 35 Resistance: P 35 Evasion (%) 55 Targeting Accuracy 5 Recoil Reduction 2 Offensive Hacking 20 Item Schematics ----------------- Hover Unit | -9/Materials | Hacked Robot Schematics ------------------ None Fabricated ------------ Nothing Repaired ---------- Nothing Studied --------- None Alien Tech Used ----------------- None Achievements -------------- DATA ERROR: Steam Global Achievement% For Emergencies Only Organ Harvest Spot Them First There's More Where That Came From Challenges ------------ None Game ------ Seed ImpactLinkedManipulator Manual? 0 Play Time 00:19:45 Cumulative 98.9 hours Start 2025.12.22 @ 17:33:07 End 2025.12.25 @ 15:59:35 Sessions 3 Manual Loads 0 Difficulty Explorer Special Mode None Game No. 55 Rogue 1 Adventurer 26 Explorer 28 Win Type - Total 3 Types 2/0/1/0/0/0/0/0/0/0 Lore% 29 Gallery% 49 Achievement% 28 Wizard Run 0 Options --------- Layout 1 ASCII 0 Keyboard 0 Movement Arrows Keybinds 0 Fullscreen 1 Font 36/Smallcaps Map View 50x40 Zoom Use 0% Tactical HUD 1 Map Filters NONE Filters NONE Steam 1 RUN: 67d71a2d-c47b-44d4-8db6-ec6a66d14736